Workbook

Sheet Zadání
A1: Zadávací list
A2: Oddlužení od 1. 6. 2019
C3: Příjmy z pracovního poměru a důchody | G3: Příspěvek ke splátkám | H3: Běžné výživné placené IS | I3: DLUŽNÉ výživné placené IS | J3: počet vyživ. osob | L3: =INT(L5/3*2*100)/100 -> 12857.33 | M3: životní minimum=2/3 u částky L5
C4: čistá mzda | D4: důchod nebo jiný příjem | E4: příjem celkem | L4: =INT(L3/4*100+1)/100/2 -> 1607.17 | M4: Na vyživovanou osobu = 1/4 z L1
A5: Jméno navrhovatele | E5: =C5+D5 -> 0 | L5: =(3410+6233)*2 -> 19286 | M5: Součet životního minima 3.410,--Kč a nákladů na bydlení 6.233,--Kč (nařízení vlády 320/2018 Sb.)
A6: Jméno manžela/ky/ | E6: =C6+D6 -> 0 | L6: =(INT(L5/3*100+1))/100 -> 6428.67 | M6: jedna třetina z L5 na poměření srážek
A7: společné označení | I7: 60
A9: Počet přezk. přihlášek | M9: 2017 | N9: 2018
A10: Odměna za sepis | B10: =IF(J12="x",6000*(1+I11),(IF(J12="X",6000*(1+I11),4000*(1+I11)))) -> 4840 | E10: odměna vč. DPH | G10: odměna | H10: pauš. náklady | I10: DPH | M10: 6154.67 | N10: 6225.33
A11: Náklady na posudek | D11: Odměna IS vč. DPH | E11: =(G11+H11)*(I11+1) -> 1089 | G11: 750 | H11: 150 | I11: 0.21 | M11: 1538.67 | N11: 1556.33
D12: zvýš. odměny IS za manžele či jiného důvodu | G12: =IF(J12="x",50%,(IF(J12="X",50,0))) -> 0 | H12: =G12 -> 0 | I12: manželé | M12: 9232 | N12: 9338
A13: Výše pohledávek za navrh. bez podřízených pohl. | C13: BEZ DUPLICIT!!!!!!! | D13: Odměna IS za manžele | E13: =IF((G13+H13)*(I13+1)>1089,(G13+H13)*(I13+1)+0.5,(G13+H13)*(I13+1)) -> 1089 | G13: =G11*(100%+G12) -> 750 | H13: 150 | I13: 0.21 | M13: 3077 | N13: 3112.66
A14: Výše pohledávek za manželem(kou) bez podřízených pohl. | D14: Odměna za přezk. přihl. | E14: =G14+G14*I14 -> 302.5 | G14: 250 | I14: 0.21
A15: Celková výše pohledávek za manžely | B15: =SUM(B13:B14) -> 0
B18: NÁVOD: Vyplňte údaje v zelených polích, pokud pro ně existují podklady, či mají pro výpočet být vyplněny. Do společných závazků vkládat společnou částku bez duplicit.
B19: Upravy 2018: Nově vloženo zaškrtávací pole pro manžele- automatické zvýšení o 50%. Ve výpočtech je pro tento případ zadáváno u každého z manželů 50% ze zvýšené částky. Do tabulky "Přímé zadání splátky" je přidán pomocník pro zjednodušení výpočtu splátky - automaticky je nastaven na 30%. Pokud potřebujete jinou procentní sazbu změnte ji přepsáním. Současně se Vám pod minimální splátkou objeví, jak vysoký by měl být případný příspěvek. Přidáno políčko na počet přihlášek - zobrazí se ve výpočtu 250,- Kč + DPH za každou přihlášku. Přihlášky se zobrazí jen u jednoho (prvého) z manželů. Zobrazeno políčko nákladů za posudek. Zobrazí se jen u prvého z manželů.
B20: Přidáno políčko za zpracování návrhu. Zobrazí se pouze u prvého z manželů.
B21: Úpravy 2019: Přidána políčka pro započtení odměny za přihlášky, odměny za zpracování insolvenčního návrhu a nákladů za zpracování znaleckého posudku. Tyto náklady jsou u prvého z manželů rozpočítány do 60 splátek, takže výsledek výpočtu, kterým se stanovuje výše uspokojení nezajištěných věřitelů je od těchto nákladů odbřemeněna.
B22: Novela 2019
B23: Doplněn automatický výpočet za podaný návrh. Pokud není přihlášen zadejte nulu.

Sheet Výpočet u navrhovatele
A1: Výpočet oddlužení
A3: Dlužník:
A4: =Zadání!B5 -> 0
E5: Návod:
A6: Přihlášené pohledávky celkem | B6: =Zadání!B13 -> 0 | E6: Proveď kontrolu zadaných (oranžových) polí.
A8: Čistý příjem | B8: =Zadání!E5 -> 0
A10: domácnost + dlužník | B10: =Zadání!L6 -> 6428.67
A11: děti či jiné osoby počet | B11: =Zadání!J5 -> 0
A12: děti či jiné osoby částka | B12: =Zadání!L4 -> 1607.17 | F12: =Zadání!L5 -> 19286
A13: děti či jiné osoby celkem | B13: =B12*B11 -> 0
A14: Celkem nezabavitelná část | B14: =IF((B13+B10)-INT(B13+B10)=0,(B13+B10),INT(B13+B10)+1) -> 6429
A16: Zbývající část čisté mzdy | B16: =B8-B14 -> -6429
A17: Neomezeně srazitelná část | B17: =IF(B$16<=F$12,0,B$16-F$12) -> 0
A18: Zabavitelné třetiny | B18: =IF(B$16<=F$12,INT(B16/3),INT(Zadání!L6)) -> -2143
A19: Součet srazitelných částek | B19: =(B17+B18*2) -> -4286
A20: Mzda | B20: =IF(B19<0,B8,IF(B11=2,B8-B19-1,B8-B19)) -> 0
A22: Zabavitelná část | B22: =IF(B19<0,0,B19) -> 0
A23: Příspěvek na spl. od 3 osoby | B23: =Zadání!G5 -> 0
A24: Výživné hrazené IS | B24: =Zadání!H5+(Zadání!I5/Zadání!I7) -> 0
A25: Odměna za přihlášky | B25: =Zadání!B9*Zadání!E14 -> 0
A26: Odměna za sepis | B26: =Zadání!B10 -> 4840
A27: Náklady na posudek | B27: =Zadání!B11 -> 0
A28: Odměna a náklady správce | B28: =IF(Zadání!J12="x",Zadání!E13/2,(IF(Zadání!J12="X",Zadání!E13/2,Zadání!E13))) -> 1089
A29: Měsíční částka připadající na splátky | B29: =IF((B22-B28-B24+B23)<0.0001,0,B22-B28-B24+B23) -> 0
A31: Dlužník uhradí za 5 let (sníženo o odměnu IS za přihlášky) | B31: =B29*60-B25-B26-B27 -> -4840
A34: =IF(B31>(B6/100*30),"Oddlužení je možné.","Nelze oddlužit.") -> Nelze oddlužit.
A36: Předpokládaná výše uspokojení v % | B36: =IF(B31>0,B31/(B6),0) -> 0
A37: Doba splácení v měsících, pokud uspokojení přesahuje 100% | B37: =IF(B36>=100%,INT(B6/B29)+1,"Více než 60 měsíců") -> Více než 60 měsíců

Sheet 2. z manželů
A1: Výpočet oddlužení
A3: Dlužník:
A4: =Zadání!B6 -> 0
E5: Návod:
A6: Přihlášené pohledávky celkem | B6: =Zadání!B14 -> 0 | E6: ='Výpočet u navrhovatele'!E6:E8 -> Proveď kontrolu zadaných (oranžových) polí.
A8: Čistý příjem | B8: =Zadání!E6 -> 0
A10: domácnost + dlužník | B10: =Zadání!L6 -> 6428.67
A11: děti či jiné osoby počet | B11: =Zadání!J6 -> 0
A12: děti či jiné osoby částka | B12: =Zadání!L4 -> 1607.17 | F12: =Zadání!L5 -> 19286
A13: děti či jiné osoby celkem | B13: =B12*B11 -> 0
A14: Celkem nezabavitelná část | B14: =IF(INT(B13+B10)-(B13+B10)=0,(B13+B10),INT(B13+B10)+1) -> 6429
A16: Zbývající část čisté mzdy | B16: =B8-B14 -> -6429
A17: Neomezeně srazitelná část | B17: =IF(B$16<=F$12,0,B$16-F$12) -> 0
A18: Zabavitelné třetiny | B18: =IF(B$16<=F$12,INT(B16/3),INT(Zadání!L6)) -> -2143
A19: Součet srazitelných částek | B19: =B17+B18*2 -> -4286
A20: Mzda | B20: =IF(B19<0,B8,IF(B11=2,B8-B19-1,B8-B19)) -> 0
A22: Zabavitelná část | B22: =IF(B19<0,0,B19) -> 0
A23: Příspěvek na spl. od 3 osoby | B23: =Zadání!G6 -> 0
A24: Výživné hrazené IS | B24: =Zadání!H6+(Zadání!I6/Zadání!I7) -> 0
A25: Odměna a náklady správce | B25: =IF(Zadání!J12="x",Zadání!E13/2,(IF(Zadání!J12="X",Zadání!E13/2,0))) -> 0
A26: Měsíční částka připadající na splátky | B26: =IF((B22-B25-B24+B23)<0.0001,0,B22-B25-B24+B23) -> 0
A28: Dlužník uhradí za 5 let (sníženo o odměnu IS za přihlášky) | B28: =B26*60 -> 0
A31: =IF(B28>(B6/100*30),"Oddlužení je možné.","Nelze oddlužit.") -> Nelze oddlužit.
A33: Předpokládaná výše uspokojení v % | B33: =IF(B28>0,B28/(B6),0) -> 0
A34: Doba splácení v měsících, pokud uspokojení přesahuje 100% | B34: =IF(B33>=100%,INT(B6/B26)+1,"Více než 60 měsíců") -> Více než 60 měsíců

Sheet Společné oddlužení manželů
A1: Výpočet oddlužení
A3: Dlužník:
A4: =Zadání!B7 -> 0
E5: Návod:
A6: Přihlášené pohledávky celkem | B6: =Zadání!B15 -> 0 | E6: Tabulka automaticky načítá kladné hodnoty z předchozích tabulek. Měnit lze pouze odměnu IS, pokud by mu náležela v jiné výši, než je uvedeno na listu zadání.
A8: Čistý příjem obou manželů | B8: =IF('Výpočet u navrhovatele'!B8<0,0,'Výpočet u navrhovatele'!B8)+IF('2. z manželů'!B8<0,0,'2. z manželů'!B8) -> 0
A10: Mzda (součet zbytku mezd) | B10: =IF('Výpočet u navrhovatele'!B20=0,'Výpočet u navrhovatele'!B8,'Výpočet u navrhovatele'!B20)+IF('2. z manželů'!B20=0,'2. z manželů'!B8,'2. z manželů'!B20) -> 0
A12: Zabavitelná část u obou manželů | B12: ='Výpočet u navrhovatele'!B22+'2. z manželů'!B22 -> 0
A13: Příspěvek na splátky od 3 osoby | B13: ='Výpočet u navrhovatele'!B23+'2. z manželů'!B23 -> 0
A14: Výživné hrazené IS | B14: ='Výpočet u navrhovatele'!B24+'2. z manželů'!B24 -> 0
A15: Odměna za přihlášky | B15: ='Výpočet u navrhovatele'!B25 -> 0
A16: ='Výpočet u navrhovatele'!A26 -> Odměna za sepis | B16: ='Výpočet u navrhovatele'!B26 -> 4840
A17: ='Výpočet u navrhovatele'!A27 -> Náklady na posudek | B17: ='Výpočet u navrhovatele'!B27 -> 0
A18: Odměna a náklady správce | B18: ='Výpočet u navrhovatele'!B28+'2. z manželů'!B25 -> 1089
A19: Měsíční částka připadající na splátky | B19: =IF((B12+B13-B18-B14)<0.0001,0,B12+B13-B18-B14) -> 0
A21: Dlužník uhradí za 5 let (sníženo o odměnu IS za přihlášky) | B21: =B19*60-B15-B16-B17 -> -4840
A24: =IF(B21>(B6/100*30),"Oddlužení je možné.","Nelze oddlužit.") -> Nelze oddlužit.
A26: Předpokládaná výše uspokojení v % | B26: =IF(B21>0,B21/(B6),0) -> 0
A27: Doba splácení v měsících, pokud uspokojení přesahuje 100% | B27: =IF(B26>=100%,INT(B6/B19)+1,"Více než 60 měsíců") -> Více než 60 měsíců

Sheet Přímé zadání splátky
A1: Výpočet oddlužení
A3: Dlužník:
A4: =IF(Zadání!B7=0,Zadání!B5,Zadání!B7) -> 0
E5: Návod:
A6: Přihlášené pohledávky celkem | B6: ='Společné oddlužení manželů'!B6 -> 0 | E6: Tabulka slouží k výpočtu snížených splátek, nebo výpočtu minimální splátky, aby byla splněna zákonná hranice 30%. Vyplň do řádku plánovaná splátka čásku, jíž by měl dlužník platit
A8: Část příjmu, jež dlužníkům zůstane | B8: ='Společné oddlužení manželů'!B8-B10 -> -1000
A10: Zabavitelná část/Plánovaná splátka | B10: 1000
A11: Výživné hrazené IS | B11: ='Společné oddlužení manželů'!B14 -> 0
A12: Odměna za přihlášky | B12: ='Společné oddlužení manželů'!B15 -> 0
A13: Odměna za sepis | B13: ='Společné oddlužení manželů'!B16 -> 4840
A14: Náklady na posudek | B14: ='Společné oddlužení manželů'!B17 -> 0
A15: Odměna a náklady správce | B15: =IF(Zadání!E13>Zadání!E11,Zadání!E13,Zadání!E11) -> 1089
A16: Měsíční částka připadající na splátky | B16: =B10-B15-B11 -> -89 | F16: Počet splátek pro výpočet | G16: 60
A18: Dlužník uhradí za 5 let (sníženo o odměnu IS za přihlášky) | B18: =B16*60-B12-B13-B14 -> -10180 | E18: Pomocník:
E20: Kolik procent má dlužník splnit? | F20: 0.3
A21: =IF(B18>(B6/100*30),"Oddlužení je možné.","Nelze oddlužit.") -> Nelze oddlužit. | E21: Výše splátky | F21: =B6*F20/60+B15+B11+(B12+B13+B14)/G16 -> 1169.666667
E22: Manželům je možno srazit | F22: ='Výpočet u navrhovatele'!B22+'2. z manželů'!B22 -> 0
A23: Předpokládaná výše uspokojení v % | B23: =IF(B18>0,B18/(B6),0) -> 0 | E23: Bude potřeba příspěvek? Kolik? | F23: =IF(('Výpočet u navrhovatele'!B22+'2. z manželů'!B22-'Přímé zadání splátky'!F21)>0,0,'Přímé zadání splátky'!F21-'Výpočet u navrhovatele'!B22-'2. z manželů'!B22) -> 1169.666667
A24: Doba splácení v měsících, pokud uspokojení přesahuje 100% | B24: =IF(B23>=100%,INT(B6/B16)+1,"Více než 60 měsíců") -> Více než 60 měsíců

Sheet Výpočet průměrného příjmu
A1: Výpočet průměrného příjmu dlužníka za posledních 6 měsíců
D3: počet měsíců | E3: 6
B9: =SUM(B3:B8) -> 0 | C9: celkem
B12: =B9/E3 -> 0 | C12: Průměrný příjem
C14: Mimořádné odměny
B17: =(B9-B14)/E3 -> 0 | C17: průměrný příjem bez odměn

Sheet Cestovné
A2: Vyúčtování nákladů IS za období od zjištění úpadku do přezkumu | N2: =K2 -> 0
K3: 1. jízda km | L3: 240 | N3: 1. jízda km | O3: 156
K4: počet jízd | L4: 1 | N4: počet jízd | O4: 1
A5: Cestovné | C5: =L13 -> 1773 | K5: cena benz./nafty | L5: 33.6 | N5: cena benz./nafty | O5: 33.6
A6: cestovné k soudu a zpět | C6: =O13 -> 1152
A7: Součet | C7: =SUM(C5:C6) -> 2925 | K7: základ | L7: 4.1 | N7: základ | O7: 4.1
A8: DPH 21% | C8: 295.68 | K8: základ celkem | L8: =L7*L3*L4 -> 984 | N8: základ celkem | O8: =O7*O3*O4 -> 639.6
A9: Náklady celkem | C9: =C7+C8 -> 3220.68 | K9: ® na 100 km | L9: =(12.4+7.6+9.4)/3 -> 9.8 | N9: ® na 100 km | O9: =(12.4+7.6+9.4)/3 -> 9.8
A10: Po zaokrouhlení | C10: =INT(C9) -> 3220 | K10: benzín na km | L10: =INT(L9*L5)/100 -> 3.29 | N10: benzín na km | O10: =INT(O9*O5)/100 -> 3.29
K11: za benzín celkem | L11: =L10*L3*L4 -> 789.6 | N11: za benzín celkem | O11: =O10*O3*O4 -> 513.24
K12: jedna cesta | L12: =INT((L7+L10)*L3) -> 1773 | N12: jedna cesta | O12: =INT((O7+O10)*O3) -> 1152
K13: celkem cesty | L13: =L12*L4 -> 1773 | N13: celkem cesty | O13: =O12*O4 -> 1152
K15: kontrolní součet | L15: =L8+L11-L13 -> 0.6
K19: Výše sazby základní náhrady za používání osobních motorových vozidel se od 1. ledna 2019 vyhláškou č. 463/2017 Sb , a činí 4,10 Kč.
K21: Průměrné ceny pohonných hmot jsou následující:
K22: a) 33,10 Kč u benzinu automobilového 95 oktanů,
K23: b) 37,10 Kč u benzinu automobilového 98 oktanů,
K24: c) 33,60 Kč u motorové nafty.
